fUST/lending_fUST_20241226
["ID","MTS","AMOUNT","RATE_DAILY","PERIOD"]
[346680918,1735173038985,-500.50940143,0.00012139,2]
[346680919,1735173038995,-500.0,0.00012139,2]
[346680920,1735173039005,-500.0,0.00012139,2]
[346680921,1735173039015,-500.0,0.00012139,2]
[346680922,1735173039024,-500.0,0.00012139,2]
[346680923,1735173039034,-500.0,0.00012139,2]
[346680924,1735173039043,-500.0,0.00012139,2]
[346680925,1735173039053,-559.06139051,0.00012139,2]
[346680926,1735173039063,-500.0,0.00012139,2]
[346680927,1735173039073,-417.01571229,0.00012139,2]
[346680928,1735173039082,-500.0,0.00012139,2]
[346680929,1735173039092,-500.0,0.00012139,2]
[346680930,1735173039101,-500.0,0.00012139,2]
[346680931,1735173039110,-500.0,0.0001214,2]
[346680932,1735173039120,-501.67606738,0.0001214,2]
[346680933,1735173039129,-182.52602396,0.0001214,2]
[346680934,1735173039139,-500.0,0.0001214,2]
[346680935,1735173039149,-504.1035995,0.0001214,2]
[346680936,1735173039159,-501.70494999,0.0001214,2]
[346680937,1735173039169,-501.55468763,0.0001214,2]
[346680938,1735173039178,-176.81687003,0.00012313,2]
[346680940,1735173039188,-500.50664382,0.00012413,2]
[346680941,1735173039198,-500.0,0.00012413,2]
[346680942,1735173039208,-500.84389074,0.00012413,2]
[346680943,1735173039218,-332.10543945,0.00012413,2]
[346680944,1735173039228,-500.0,0.00012413,2]
[346680945,1735173039238,-500.0,0.00012413,2]
[346680946,1735173039247,-506.16875117,0.00012413,2]
[346680947,1735173039256,-500.0,0.00012413,2]
[346680948,1735173039266,-500.0,0.00012413,2]
[346680949,1735173039276,-636.60515215,0.00012413,2]
[346680950,1735173039286,-500.0,0.00012413,2]
[346680951,1735173039295,-500.0,0.00012413,2]
[346680953,1735173039304,-503.40096531,0.00012413,2]
[346680954,1735173039314,-500.0,0.00012413,2]
[346680955,1735173039323,-500.0,0.00012413,2]
[346680956,1735173039333,-500.0,0.00012413,2]
[346680957,1735173039342,-501.14057016,0.00012413,2]
[346680958,1735173039351,-500.0,0.00012413,2]
[346680959,1735173039360,-500.0,0.00012413,2]
[346680960,1735173039371,-500.0,0.00012413,2]
[346680961,1735173039380,-641.47542882,0.00012413,2]
[346680962,1735173039390,-511.73191842,0.00012413,2]
[346680963,1735173039399,-508.66148769,0.00012413,2]
[346680964,1735173039410,-509.25388537,0.00012413,2]
[346680965,1735173039419,-500.80515919,0.00012413,2]
[346680966,1735173039428,-419.90443415,0.00012413,2]
[346680967,1735173039438,-500.50647208,0.00012413,2]
[346680968,1735173039447,-153.32979246,0.00012413,2]
[346680969,1735173039458,-500.0,0.00012413,2]
[346680970,1735173039469,-500.44613001,0.00012413,2]
[346680971,1735173039480,-500.0,0.00012413,2]
[346680972,1735173039489,-500.58161641,0.00012413,2]
[346680973,1735173039499,-500.0,0.00012413,2]
[346680974,1735173039508,-305.91873109,0.00012413,2]
[346680975,1735173039518,-500.0,0.00012413,2]
[346680977,1735173039527,-502.08089568,0.00012413,2]
[346680979,1735173039537,-500.0,0.00012413,2]
[346680981,1735173039547,-500.0,0.00012413,2]
[346680983,1735173039556,-500.0,0.00012413,2]
[346680985,1735173039566,-315.96,0.00012413,2]
[346680987,1735173039575,-500.0,0.00012413,2]
[346680989,1735173039585,-257.09,0.00012413,2]
[346680991,1735173039595,-1430.02,0.00012413,2]
[346680993,1735173039604,-154.75,0.00012413,2]
[346680995,1735173039613,-392.33,0.00012413,2]
[346680997,1735173039623,-500.0,0.00012413,2]
[346680999,1735173039633,-500.0,0.00012413,2]
[346681001,1735173039643,-500.0,0.00012413,2]
[346681003,1735173039655,-500.0,0.0001265,2]
[346681005,1735173039664,-500.0,0.00012687,2]
[346681007,1735173039674,-500.0,0.00012687,2]
[346681009,1735173039683,-500.0,0.00012687,2]
[346681011,1735173039692,-1430.02,0.00012687,2]
[346681013,1735173039702,-500.0,0.00012687,2]
[346681015,1735173039714,-157.684,0.0001276,2]
[346681017,1735173039726,-281.36215528,0.00012923,2]
[346681019,1735173039736,-500.0,0.00012961,2]
[346681021,1735173039745,-500.0,0.00012961,2]
[346681023,1735173039755,-500.0,0.00012961,2]
[346681025,1735173039764,-1430.02,0.00012961,2]
[346681027,1735173039774,-500.0,0.00012961,2]
[346681029,1735173039783,-423.84,0.00013,2]
[346681031,1735173039793,-2355.0,0.00013142,2]
[346681033,1735173039803,-150.0,0.00013142,2]
[346681035,1735173039813,-328.193,0.00013183,2]
[346681037,1735173039822,-1000.0,0.00013198,2]
[346681039,1735173039832,-3397.35188159,0.00013235,2]
[346681041,1735173039841,-500.0,0.00013235,2]
[346681043,1735173039851,-500.0,0.00013235,2]
[346681045,1735173039860,-1430.02,0.00013235,2]
[346681047,1735173039870,-500.0,0.00013235,2]
[346681049,1735173039879,-468.05980783,0.00013255,2]
[346681051,1735173039888,-500.0,0.00013255,2]
[346681053,1735173039898,-500.0,0.00013255,2]
[346681055,1735173039908,-756.62,0.000133,2]
[346681057,1735173039918,-420.0,0.00013323,2]
[346681059,1735173039928,-500.0,0.00013413,2]
[346681061,1735173039937,-500.0,0.00013509,2]
[346681063,1735173039946,-500.0,0.00013509,2]
[346681065,1735173039956,-500.0,0.00013509,2]
[346681067,1735173039966,-1430.02,0.00013509,2]
[346681069,1735173039976,-500.0,0.00013509,2]
[346681071,1735173039986,-500.0,0.00013509,2]
[346681073,1735173039995,-302.210679,0.00013699,2]
[346681075,1735173040008,-302.45,0.00013699,2]
[346681077,1735173040018,-565.56782337,0.00013699,2]
[346681091,1735173040144,-7957.74883383,0.0001371,2]
[346681094,1735173040154,-500.0,0.00013783,2]
[346681096,1735173040164,-500.0,0.00013783,2]
[346681098,1735173040173,-1430.02,0.00013783,2]
[346681099,1735173040183,-500.0,0.00013783,2]
[346681101,1735173040192,-500.0,0.00013803,2]
[346681103,1735173040202,-265.5852823,0.00013859,2]
[346681105,1735173040211,-500.0,0.00013899,2]
[346681107,1735173040222,-500.0,0.00013899,2]
[346681109,1735173040231,-500.0,0.00013899,2]
[346681111,1735173040241,-500.0,0.00013899,2]
[346681113,1735173040250,-32473.11496532,0.000139,2]
[346681115,1735173040260,-6071.4091989,0.000139,2]
[346681117,1735173040270,-176.81687003,0.000139,2]
[346681119,1735173040279,-152.0,0.00013953,2]
[346681122,1735173040289,-500.0,0.00013973,2]
[346681123,1735173040298,-500.0,0.00013973,2]
[346681125,1735173040307,-400.0,0.00013973,2]
[346681127,1735173040317,-160.0,0.00013999,2]
[346681129,1735173040327,-500.0,0.00013999,2]
[346681131,1735173040336,-500.0,0.00013999,2]
[346681133,1735173040346,-500.0,0.00013999,2]
[346681135,1735173040355,-500.0,0.00013999,2]
[346681137,1735173040365,-500.0,0.00013999,2]
[346681139,1735173040374,-500.0,0.00013999,2]
[346681141,1735173040383,-500.0,0.00013999,2]
[346681143,1735173040392,-500.0,0.00013999,2]
[346681145,1735173040401,-500.0,0.00013999,2]
[346681147,1735173040411,-500.0,0.00013999,2]
[346681149,1735173040420,-500.0,0.00013999,2]
[346681151,1735173040430,-500.0,0.00013999,2]
[346681153,1735173040442,-279.41982559,0.00013999,2]
[346681155,1735173040451,-8961.84576487,0.00014,2]
[346681157,1735173040461,-38666.70934996,0.00014,2]
[346681214,1735173045932,-635.20282388,0.00012138,2]
[346681215,1735173045942,-2119.0,0.00013142,2]
[346681216,1735173045951,-6613.6895655,0.00014,2]
[346681217,1735173045960,-15016.89175228,0.00014,2]
[346681251,1735174232020,-500.0,0.00012138,2]
[346681253,1735174232030,-191.43045937,0.00012452,2]
[346681255,1735174232039,-363.93954063,0.00012453,2]
[346681295,1735174240147,-300.0,0.00012552,2]
[346681296,1735174240162,-300.0,0.00012552,2]
[346681297,1735174240171,-7788.76796473,0.00012553,2]
[346681334,1735175021261,558.35610471,0.00023,120]
[346681338,1735175297519,-1017.50549478,0.00010768,2]
[346681339,1735175297565,-66.62350522,0.00010768,2]
[346681340,1735175297595,-271.18692301,0.00010858,2]
[346681341,1735175297621,-679.69506655,0.00010959,2]
[346681342,1735175297653,-604.53227698,0.00010959,2]
[346681343,1735175322391,-1070.29636011,0.00010959,2]
[346681344,1735175322442,-1070.29636011,0.00010959,2]
[346681345,1735175322509,-608.80096609,0.00010959,2]
[346681346,1735175347354,-1125.28423384,0.00010877,2]
[346681347,1735175347399,-405.28459166,0.00010877,2]
[346681348,1735175347454,-1125.28423384,0.00010877,2]
[346681372,1735175432230,-774.06949576,0.00010959,2]
[346681373,1735175432239,-251.4304054,0.00010977,2]
[346681375,1735175432248,-752.98223374,0.00011277,2]
[346681377,1735175432291,-1643.74518706,0.00011277,2]
[346681378,1735175432300,-300.0,0.00011478,2]
[346681379,1735175432309,-300.0,0.00011478,2]
[346681380,1735175432318,-118.69591354,0.00011479,2]
[346681381,1735175432329,-4734.96601026,0.00011479,2]
[346681382,1735175432338,-975.35609102,0.00011578,2]
[346681390,1735175438320,-3505.56679141,0.00011578,2]
[346681391,1735175438330,-60823.9335015,0.00011578,2]
[346681392,1735175438340,-250.0,0.00011578,2]
[346681393,1735175438350,-5265.90360997,0.00011892,2]
[346681394,1735175438359,-1147.39100521,0.00011892,2]
[346681395,1735175438368,-500.0,0.00012552,2]
[346681396,1735175438378,-160.7233502,0.00012563,2]
[346681397,1735175438387,-420.0,0.00012607,2]
[346681398,1735175438398,-1030.44,0.00012693,2]
[346681399,1735175438407,-500.0,0.00012693,2]
[346681400,1735175438417,-220.24090572,0.000129,2]
[346681401,1735175438428,-1030.44,0.00012967,2]
[346681402,1735175438437,-500.0,0.00012967,2]
[346681403,1735175438446,-381.45,0.000131,2]
[346681404,1735175438455,-500.0,0.00013141,2]
[346681405,1735175438464,-150.0,0.00013142,2]
[346681406,1735175438473,-2127.0,0.00013142,2]
[346681407,1735175438483,-534.0,0.00013142,2]
[346681408,1735175438492,-2355.0,0.00013142,2]
[346681409,1735175438501,-3000.0,0.000132,2]
[346681410,1735175438510,-1030.44,0.00013241,2]
[346681411,1735175438519,-500.0,0.00013241,2]
[346681412,1735175438685,-322.583,0.00013255,2]
[346681413,1735175438696,-3057.61669343,0.00013268,2]
[346681414,1735175438706,-762.298,0.000133,2]
[346681415,1735175438715,-500.0,0.00013415,2]
[346681416,1735175438724,-486.36469204,0.00013467,2]
[346681417,1735175438733,-220.24090566,0.00013496,2]
[346681418,1735175438742,-1030.44,0.00013515,2]
[346681419,1735175438751,-500.0,0.00013515,2]
[346681420,1735175438760,-500.0,0.00013689,2]
[346681421,1735175438770,-1030.44,0.00013789,2]
[346681422,1735175438779,-500.0,0.00013789,2]
[346681423,1735175438788,-587.0,0.00013847,2]
[346681424,1735175438797,-228.57807455,0.000139,2]
[346681425,1735175438806,-5591.28091356,0.000139,2]
[346681426,1735175438815,-152.0,0.00013919,2]
[346681427,1735175438825,-500.0,0.00013919,2]
[346681428,1735175438834,-500.0,0.0001392,2]
[346681429,1735175438843,-500.0,0.00013963,2]
[346681430,1735175438853,-400.0,0.00013973,2]
[346681431,1735175438862,-445.94460808,0.00013999,2]
[346681432,1735175438871,-500.0,0.00013999,2]
[346681433,1735175438886,-500.0,0.00013999,2]
[346681434,1735175438897,-500.0,0.00013999,2]
[346681435,1735175438907,-169.87278138,0.00013999,2]
[346681436,1735175438916,-133845.93258546,0.00014,2]
[346681437,1735175438929,-405.62004032,0.00014,2]
[346681438,1735175438941,-289.22948252,0.00014,2]
[346681494,1735175443475,-838.32731644,0.00014,2]
[346681565,1735175764838,2365.97,0.00013999,30]
[346681566,1735175765140,2365.97,0.00013999,30]
[346681567,1735175765375,2365.97,0.00013999,30]
[346681568,1735175765632,2365.97,0.00013999,30]
[346681569,1735175765921,2365.97,0.00013999,30]
[346681570,1735175766162,2365.97,0.00013999,30]
[346681571,1735175766550,2365.97,0.00013999,30]
[346681572,1735175766799,2365.97,0.00013999,30]
[346681573,1735175767049,2365.97,0.00013999,30]
[346681574,1735175767303,2365.97,0.00013999,30]
[346681575,1735175767548,2365.97,0.00013999,30]
[346681576,1735175767828,2365.97,0.00013999,30]
[346681577,1735175768079,2365.97,0.00013999,30]
[346681578,1735175768345,2365.97,0.00013999,30]
[346681579,1735175768608,2365.97,0.00013999,30]
[346681580,1735175768860,2365.97,0.00013999,30]
[346681581,1735175769106,1024.26900152,0.00013999,30]
[346681582,1735175769139,1341.70099848,0.00013999,30]
[346681583,1735175769361,2365.97,0.00013999,30]
[346681584,1735175769634,2365.97,0.00013999,30]
[346681585,1735175769912,2365.97,0.00013999,30]
[346681586,1735175770209,2365.97,0.00013999,30]
[346681587,1735175770455,2365.97,0.00013999,30]
[346681588,1735175770714,2365.97,0.00013999,30]
[346681589,1735175771009,2366.05352743,0.00013999,30]
[346681591,1735175972081,-815.76,0.00011577,2]
[346681592,1735175972104,-815.76,0.00011851,2]
[346681593,1735175972129,-500.0,0.00011889,2]
[346681594,1735175972154,-500.0,0.00011889,2]
[346681595,1735175972178,-815.76,0.00012125,2]
[346681596,1735175972202,-300.0,0.00012162,2]
[346681597,1735175972227,-300.0,0.00012162,2]
[346681598,1735175972251,-500.0,0.00012163,2]
[346681599,1735175972276,-500.0,0.00012163,2]
[346681600,1735175972299,-815.76,0.00012399,2]
[346681601,1735175972324,-500.0,0.00012437,2]
[346681602,1735175972350,-500.0,0.00012437,2]
[346681603,1735175972376,-726.4574572,0.00012595,2]
[346681604,1735175972401,-815.76,0.00012673,2]
[346681605,1735175972423,-1407.50440964,0.00012711,2]
[346681606,1735175972449,-500.0,0.00012711,2]
[346681607,1735175972473,-500.0,0.00012711,2]
[346681608,1735175972497,-815.76,0.00012947,2]
[346681609,1735175972521,-500.0,0.00012985,2]
[346681610,1735175972545,-500.0,0.00012985,2]
[346681611,1735175972573,-534.0,0.00013142,2]
[346681612,1735175972596,-2119.0,0.00013142,2]
[346681613,1735175972619,-2355.0,0.00013142,2]
[346681614,1735175972643,-815.76,0.00013221,2]
[346681615,1735175972667,-500.0,0.00013259,2]
[346681616,1735175972692,-500.0,0.00013259,2]
[346681617,1735175972715,-2751.85502409,0.00013274,2]
[346681618,1735175972739,-420.0,0.00013349,2]
[346681619,1735175972762,-815.76,0.00013495,2]
[346681620,1735175972786,-316.08581086,0.00013533,2]
[346681621,1735175972810,-500.0,0.00013533,2]
[346681622,1735175972838,-152.0,0.000136,2]
[346681623,1735175972989,-343.31,0.000137,2]
[346681624,1735175973015,-815.76,0.00013769,2]
[346681625,1735175973040,-500.0,0.00013807,2]
[346681626,1735175973063,-5032.15282224,0.000139,2]
[346681627,1735175973089,-165.18067928,0.000139,2]
[346681628,1735175973113,-300.0,0.000139,5]
[346681629,1735175973136,-300.0,0.000139,2]
[346681630,1735175973160,-300.0,0.000139,4]
[346681631,1735175973184,-302.41012367,0.000139,4]
[346681632,1735175973208,-258.066,0.00013999,2]
[346681633,1735175973234,-30411.96675075,0.00014,2]
[346681634,1735175973257,-2240.46144122,0.00014,2]
[346681635,1735175973283,-134622.70948105,0.00014,2]
[346681714,1735176632749,-300.0,0.00012708,2]
[346681715,1735176632758,-24900.0,0.00012709,2]
[346681716,1735176632768,-250.0,0.00012757,2]
[346681717,1735176632777,-749.619,0.000133,2]
[346681718,1735176632787,-466.06823461,0.00013434,2]
[346681719,1735176632796,-308.98,0.000137,2]
[346681720,1735176632805,-627.7807062,0.000137,2]
[346681721,1735176632814,-165.18067924,0.00013759,2]
[346681722,1735176632824,-5865.49716904,0.000138,2]
[346681723,1735176632833,-299.0877886,0.00013859,2]
[346681724,1735176632842,-213.3923611,0.000139,2]
[346681725,1735176632851,-153.201375,0.000139,2]
[346681726,1735176632860,-352.2858095,0.000139,2]
[346681727,1735176632869,-352.2858095,0.000139,2]
[346681728,1735176632879,-4694.14626804,0.000139,2]
[346681729,1735176632888,-420.0,0.0001394,2]
[346681730,1735176632897,-400.0,0.00013973,2]
[346681731,1735176632906,-500.0,0.00013999,2]
[346681732,1735176632916,-509.85,0.00013999,2]
[346681733,1735176632925,-646.38440881,0.00013999,2]
[346681734,1735176632935,-1120.23072061,0.00014,2]
[346681735,1735176632944,-46694.39495075,0.00014,2]
[346681736,1735176632953,-310535.8397019,0.00014,2]
[346681737,1735176632965,-6392.731,0.00014,2]
[346681738,1735176632976,-87355.73130461,0.00014,2]
[346681767,1735176638456,-2124.343,0.00013142,2]
[346681768,1735176638466,-8302.3551085,0.00014,2]
[346681769,1735176638477,-1504.09645731,0.00014,2]
[346681789,1735176641244,-535.293,0.00013142,2]
[346681790,1735176641256,-2509.09473997,0.00014,2]
[346681837,1735176997454,200.0,0.00023,120]
[346681838,1735177783787,-1108.42386299,0.00011651,2]
[346681839,1735177783821,-410.20178876,0.00011651,2]
[346681840,1735177783865,-1108.42386299,0.00011651,2]
[346681842,1735177809479,-300.0,0.0001165,2]
[346681843,1735177809508,-860.96485329,0.00011651,2]
[346681844,1735177809540,-309.22936533,0.00011651,2]
[346681845,1735177809599,-1160.96485329,0.00011651,2]
[346681858,1735177832733,-9009.10765782,0.00011651,2]
[346681860,1735177832746,-10932.68375553,0.00011651,2]
[346681862,1735177832755,-1418.3357421,0.00011801,2]
[346681864,1735177832764,-1354.1445547,0.0001187,2]
[346681866,1735177832773,-500.57354785,0.00012514,2]
[346681868,1735177832784,-887.0594786,0.00012584,2]
[346681870,1735177832793,-449.88466213,0.00012607,2]
[346681872,1735177832803,-300.0,0.00012705,2]
[346681874,1735177832812,-501.60469412,0.00012706,2]
[346681876,1735177832821,-501.20805726,0.00012706,2]
[346681878,1735177832831,-503.82003221,0.00012706,2]
[346681879,1735177832841,-501.76239606,0.00012706,2]
[346681881,1735177832851,-505.44779001,0.00012706,2]
[346681883,1735177832861,-520.45569255,0.00012706,2]
[346681885,1735177832870,-501.57571298,0.00012706,2]
[346681887,1735177832879,-501.37338099,0.00012706,2]
[346681888,1735177832888,-500.74626978,0.00012706,2]
[346681889,1735177832899,-501.76862758,0.00012706,2]
[346681890,1735177832908,-501.85688735,0.00012706,2]
[346681891,1735177832918,-501.51290228,0.00012706,2]
[346681892,1735177832928,-501.01018318,0.00012706,2]
[346681893,1735177832937,-500.70637568,0.00012706,2]
[346681895,1735177832946,-500.80646611,0.00012706,2]
[346681897,1735177832956,-501.24310824,0.00012706,2]
[346681898,1735177832965,-500.86552787,0.00012706,2]
[346681900,1735177832974,-502.17949007,0.00012706,2]
[346681902,1735177832983,-503.64734084,0.00012706,2]
[346681904,1735177832992,-501.09210872,0.00012706,2]
[346681906,1735177833002,-503.25279152,0.00012706,2]
[346681907,1735177833011,-501.4481342,0.00012706,2]
[346681909,1735177833020,-500.86921154,0.00012706,2]
[346681911,1735177833029,-504.15374948,0.00012706,2]
[346681912,1735177833039,-500.78244702,0.00012706,2]
[346681913,1735177833048,-503.55084586,0.00012706,2]
[346681914,1735177833057,-503.79617924,0.00012706,2]
[346681915,1735177833067,-501.09910152,0.00012706,2]
[346681916,1735177833076,-555.81882007,0.00012706,2]
[346681917,1735177833085,-501.74314007,0.00012706,2]
[346681918,1735177833095,-501.72611921,0.00012706,2]
[346681919,1735177833104,-501.94835135,0.00012706,2]
[346681920,1735177833113,-501.5630372,0.00012706,2]
[346681921,1735177833123,-503.18050725,0.00012706,2]
[346681922,1735177833132,-502.46659543,0.00012706,2]
[346682030,1735177840885,-368.27248404,0.00012705,2]
[346682032,1735177840895,-500.0,0.00012705,2]
[346682034,1735177840904,-137.40208966,0.00012705,2]
[346682036,1735177840916,-327.8439431,0.00012705,2]
[346682037,1735177840928,-34.75396724,0.00012705,2]
[346682038,1735177840937,-500.0,0.00012705,2]
[346682039,1735177840946,-429.42560919,0.00012705,2]
[346682040,1735177840958,-70.57439081,0.00012705,2]
[346682041,1735177840966,-379.61053999,0.00012705,2]
[346682042,1735177840975,-338.5550692,0.00012705,2]
[346682043,1735177840987,-161.4449308,0.00012705,2]
[346682044,1735177840997,-500.0,0.00012705,2]
[346682045,1735177841007,-507.09816707,0.00012705,2]
[346682046,1735177841015,-389.45105679,0.00012705,2]
[346682047,1735177841024,-500.0,0.00012705,2]
[346682049,1735177841033,-500.0,0.00012705,2]
[346682050,1735177841042,-156.29900592,0.00012705,2]
[346682051,1735177841051,-500.0,0.00012705,2]
[346682052,1735177841061,-0.33010242,0.00012706,2]
[346682053,1735177841070,-75.39147072,0.00012706,2]
[346682054,1735177841082,-425.86799603,0.00012706,2]
[346682055,1735177841091,-501.28043704,0.00012706,2]
[346682056,1735177841100,-505.57901378,0.00012706,2]
[346682057,1735177841109,-500.0,0.00012706,2]
[346682058,1735177841119,-500.65117865,0.00012706,2]
[346682059,1735177841128,-504.98816018,0.00012706,2]
[346682060,1735177841138,-501.37236553,0.00012706,2]
[346682061,1735177841148,-502.67698964,0.00012706,2]
[346682062,1735177841157,-500.0,0.00012706,2]
[346682063,1735177841166,-500.0,0.00012706,2]
[346682064,1735177841176,-499.93158421,0.00012706,2]
[346682065,1735177841186,-501.42293601,0.00012706,2]
[346682066,1735177841195,-502.11410847,0.00012706,2]
[346682067,1735177841205,-508.49256557,0.00012706,2]
[346682068,1735177841215,-500.58282144,0.00012706,2]
[346682069,1735177841224,-501.10768348,0.00012706,2]
[346682070,1735177841233,-501.00107305,0.00012706,2]
[346682071,1735177841242,-500.93039905,0.00012706,2]
[346682072,1735177841251,-501.73359627,0.00012706,2]
[346682073,1735177841261,-500.56476038,0.00012706,2]
[346682074,1735177841271,-502.62284465,0.00012706,2]
[346682075,1735177841280,-503.19131646,0.00012706,2]
[346682076,1735177841291,-501.70613537,0.00012706,2]
[346682077,1735177841300,-500.97650548,0.00012706,2]
[346682078,1735177841310,-500.85646155,0.00012706,2]
[346682079,1735177841320,-501.00634841,0.00012706,2]
[346682080,1735177841330,-504.34804483,0.00012706,2]
[346682081,1735177841339,-500.90849387,0.00012706,2]
[346682082,1735177841348,-503.87732944,0.00012706,2]
[346682083,1735177841358,-501.17092592,0.00012706,2]
[346682084,1735177841367,-504.17052848,0.00012706,2]
[346682085,1735177841377,-500.46418391,0.00012706,2]
[346682086,1735177841386,-501.99351063,0.00012706,2]
[346682087,1735177841396,-501.55669837,0.00012706,2]
[346682088,1735177841407,-543.65783966,0.00012706,2]
[346682089,1735177841417,-501.17986079,0.00012706,2]
[346682090,1735177841427,-501.41650792,0.00012706,2]
[346682091,1735177841436,-500.71306545,0.00012706,2]
[346682092,1735177841446,-469.28243914,0.00012706,2]
[346682093,1735177841569,-500.54620973,0.00012706,2]
[346682094,1735177841579,-504.87510772,0.00012706,2]
[346682095,1735177841589,-530.61833299,0.00012706,2]
[346682096,1735177841605,-502.38459051,0.00012706,2]
[346682097,1735177841616,-504.88199623,0.00012706,2]
[346682098,1735177841626,-506.79595733,0.00012706,2]
[346682099,1735177841636,-565.30206219,0.00012706,2]
[346682100,1735177841645,-505.51844562,0.00012706,2]
[346682101,1735177841656,-500.75611206,0.00012706,2]
[346682102,1735177841665,-500.57126293,0.00012706,2]
[346682103,1735177841674,-503.07056011,0.00012706,2]
[346682104,1735177841683,-501.18218131,0.00012706,2]
[346682105,1735177841693,-325.05527415,0.00012706,2]
[346682106,1735177841704,-571.23037271,0.00012706,2]
[346682107,1735177841713,-500.0,0.00012706,2]
[346682108,1735177841723,-502.44334841,0.00012706,2]
[346682109,1735177841732,-502.56869097,0.00012706,2]
[346682110,1735177841741,-500.71013123,0.00012706,2]
[346682111,1735177841751,-517.21503998,0.00012706,2]
[346682112,1735177841760,-500.8960368,0.00012706,2]
[346682113,1735177841769,-500.75382726,0.00012706,2]
[346682114,1735177841779,-503.89578358,0.00012706,2]
[346682115,1735177841788,-502.46324347,0.00012706,2]
[346682116,1735177841798,-502.21634785,0.00012706,2]
[346682117,1735177841807,-503.6463868,0.00012706,2]
[346682118,1735177841816,-501.1224893,0.00012706,2]
[346682119,1735177841825,-504.5,0.00012706,2]
[346682120,1735177841835,-501.87820346,0.00012706,2]
[346682121,1735177841844,-501.34771153,0.00012706,2]
[346682122,1735177841853,-502.75258777,0.00012706,2]
[346682123,1735177841863,-391.34491956,0.00012706,2]
[346682124,1735177841872,-500.47384648,0.00012706,2]
[346682125,1735177841882,-502.0461617,0.00012706,2]
[346682126,1735177841891,-504.85532216,0.00012706,2]
[346682127,1735177841901,-227.05677068,0.00012706,2]
[346682128,1735177841910,-500.58376859,0.00012706,2]
[346682129,1735177841920,-500.8723615,0.00012706,2]
[346682130,1735177841929,-503.09766326,0.00012706,2]
[346682131,1735177841938,-501.26695797,0.00012706,2]
[346682132,1735177841947,-508.81659096,0.00012706,2]
[346682133,1735177841957,-501.47141255,0.00012706,2]
[346682134,1735177841966,-504.92766788,0.00012706,2]
[346682135,1735177841975,-501.02437163,0.00012706,2]
[346682136,1735177841985,-503.0424168,0.00012706,2]
[346682137,1735177841994,-628.24073593,0.00012706,2]
[346682138,1735177842003,-504.48183425,0.00012707,2]
[346682139,1735177842012,-501.36684845,0.00012707,2]
[346682140,1735177842022,-504.73285515,0.00012707,2]
[346682141,1735177842031,-501.06798815,0.00012707,2]
[346682142,1735177842039,-501.13151474,0.00012707,2]
[346682143,1735177842049,-500.0,0.00012707,2]
[346682144,1735177842058,-560.9325309,0.00012707,2]
[346682145,1735177842067,-503.17660737,0.00012707,2]
[346682146,1735177842076,-520.02756637,0.00012707,2]
[346682147,1735177842085,-247.23912192,0.00012707,2]
[346682148,1735177842095,-504.97236592,0.00012707,2]
[346682149,1735177842104,-509.03617777,0.00012707,2]
[346682150,1735177842114,-504.9432495,0.00012707,2]
[346682151,1735177842123,-500.0,0.00012707,2]
[346682152,1735177842133,-504.63850474,0.00012707,2]
[346682153,1735177842142,-504.40443046,0.00012707,2]
[346682154,1735177842153,-500.0,0.00012707,2]
[346682155,1735177842162,-267.41978002,0.00012707,2]
[346682156,1735177842172,-504.94149891,0.00012707,2]
[346682157,1735177842181,-501.35615377,0.00012707,2]
[346682158,1735177842191,-500.0,0.00012707,2]
[346682159,1735177842200,-500.0,0.00012707,2]
[346682160,1735177842209,-172.63085838,0.00012707,2]